Workbook

Sheet Sheet1
F1: Real Time | G1: Capital Balance = | H1: 532734 | I1: Monthly +- | J1: Cumulative
A2: Jan | H2: Jan | I2: 54909 | J2: =I2 -> 54909
B3: 1352 | H3: Feb | I3: -6555 | J3: 48354
B4: 9201 | H4: Mar | I4: -12979 | J4: 35375
B5: 15684 | H5: Apr | I5: -442 | J5: 34933
B6: 3967 | H6: May | I6: -13818 | J6: 21115
B7: 2078 | H7: Jun | I7: 74683 | J7: 95798
B8: 4040 | H8: Jul | I8: -79844 | J8: 15954
B9: -9016 | H9: Aug | I9: 56734 | J9: 72668
B10: -1912 | H10: Sep | I10: 27276 | J10: 99944
B11: 2511 | H11: Oct | I11: 29301 | J11: 129245
B12: -1502 | H12: Nov | I12: 43430 | J12: 172675
B13: 8137 | H13: Dec | I13: 127685 | J13: 300360
B14: 433
B15: 13476
B16: -1711
B17: -3189
B18: 9641
B19: -528
B20: -1113
B21: 3360
A23: Jan Total | B23: =SUM(B2:B22) -> 54909
J24: =J23+I24 -> 0
J25: 0
A26: Feb | J26: 0
B27: 3796 | J27: 0
B28: -13129 | J28: 0
B29: 319 | J29: 0
B30: -3806 | J30: =J28+I30 -> 0
B31: -1602 | H31: Total 2017 | I31: 300360
B32: -1892
B33: 96
B34: 13293
B35: -756
B36: 12278
B37: -690
B38: -3390
B39: 4468
B40: 2308
B41: 3986
B42: -9515
B43: -5657
B44: -2590
B45: -4072
A47: Feb Total | B47: =SUM(B26:B46) -> -6555
A48: Mar
B49: -14179
B50: -14007
B51: 6750
B52: -3550
B53: -2610
B54: -161
B55: 3390
B56: -3626
B57: -1290
B58: -9540
B59: -4759
B60: 7807
B61: -1873
B62: -2635
B63: 20973
B64: 9186
B65: -877
B66: -739
B67: 3002
B68: -9084
B69: 4843
A70: Total Mar | B70: =SUM(B49:B69) -> -12979
A72: Apr | B72: -3990
B73: -10905
B74: 1194
B75: -19182
B76: 3678
B77: -2078
B78: -2767
B79: -4049
B80: 45
B81: -1164
B82: 2733
B83: -483
B84: 3082
B85: 1630
B86: -7771
B87: 13801
B88: 26234
B89: -2336
B90: 1886
A93: Total Apr | B93: =SUM(B72:B92) -> -442
A95: May | B95: 3623
B96: -3811
B97: -1322
B98: -10491
B99: -8542
B100: 3203
B101: -253
B102: -7784
B103: -685
B104: 4227
B105: -3948
B106: 5856
B107: -4815
B108: -1680
B109: 9053
B110: 1998
B111: 14910
B112: -1683
B113: -16396
B114: 90
B115: 4632
A117: Total May | B117: =SUM(B95:B116) -> -13818
A119: Jun | B119: 8871
B120: 1112
B121: -4742
B122: 10002
B123: 9210
B124: 3644
B125: 3234
B126: -5168
B127: 562
B128: -3042
B129: 7511
B130: -4547
B131: 8921
B132: 8489
B133: 4109
B134: 20750
B135: -6606
B136: 9650
B137: 2563
B138: -3232
B139: 6551
B140: -3159
A142: Total Jun | B142: =SUM(B119:B141) -> 74683
A144: Jul | B144: 3888
B145: -9035
B146: 1121
B147: -36
B148: -8422
B149: 667
B150: 1551
B151: -11572
B152: -11354
B153: -497
B154: 1300
B155: -1124
B156: 4552
B157: -3136
B158: -627
B159: -9676
B160: -7592
B161: -20434
B162: -1501
B163: -7917
A167: Total Jul | B167: =SUM(B144:B166) -> -79844
A169: Aug | B169: -1278
B170: 240
B171: 6977
B172: -4307
B173: 4164
B174: 839
B175: -9496
B176: -3275
B177: 3349
B178: 5694
B179: 8217
B180: 2314
B181: -3798
B182: -5669
B183: -832
B184: -8040
B185: 16995
B186: 892
B187: 30705
B188: 224
B189: 12819
A190: Total Aug | B190: =SUM(B168:B189) -> 56734
A192: Sep | B192: 11696
B193: -4886
B194: 3254
B195: -6501
B196: 4810
B197: 4113
B198: 7098
B199: 16994
B200: -7094
B201: 4959
B202: 4042
B203: -14846
B204: -3258
B205: 12806
B206: -1754
B207: 3967
B208: -7424
B209: -6031
B210: 1241
B211: 4090
A216: Total Sep | B216: =SUM(B192:B213) -> 27276
A218: Oct | B218: 5800
B219: 2161
B220: 12573
... 61 more rows
